[Event "*** Titled Tuesday Blitz"]
[Site "Chess.com"]
[Date "2020.05.26"]
[Round "6"]
[White "Benjoneliere44"]
[Black "VMikhalevski"]
[Result "0-1"]
[WhiteElo "2555"]
[BlackElo "2758"]
[TimeControl "180+1"]
[EndTime "11:06:26 PDT"]
[Termination "VMikhalevski won by resignation"]

1. d4 {[%clk 0:03:00.9]} 1... Nf6 {[%clk 0:02:59.7]} 2. Bf4 {[%clk 0:03:00.4]}
2... d5 {[%clk 0:02:57.4]} 3. e3 {[%clk 0:03:00.3]} 3... Bg4 {[%clk 0:02:56.4]}
4. Be2 {[%clk 0:02:45.5]} 4... Bxe2 {[%clk 0:02:55.5]} 5. Qxe2 {[%clk
0:02:46.2]} 5... c6 {[%clk 0:02:54.7]} 6. Nf3 {[%clk 0:02:40.2]} 6... Nbd7
{[%clk 0:02:54.6]} 7. Ne5 {[%clk 0:02:39.8]} 7... e6 {[%clk 0:02:53.2]} 8. Nd2
{[%clk 0:02:38.2]} 8... Qb6 {[%clk 0:02:49.7]} 9. Nxd7 {[%clk 0:02:34.4]} 9...
Nxd7 {[%clk 0:02:48.9]} 10. O-O {[%clk 0:02:26.3]} 10... Be7 {[%clk 0:02:48.8]}
11. Rab1 {[%clk 0:01:56.8]} 11... O-O {[%clk 0:02:47.2]} 12. h3 {[%clk
0:01:56.6]} 12... a5 {[%clk 0:02:37.6]} 13. c3 {[%clk 0:01:46.5]} 13... a4
{[%clk 0:02:31]} 14. e4 {[%clk 0:01:45.5]} 14... Qa5 {[%clk 0:02:30]} 15. Rfc1
{[%clk 0:01:39.8]} 15... b5 {[%clk 0:02:21.5]} 16. b3 {[%clk 0:01:20.1]} 16...
axb3 {[%clk 0:02:15.4]} 17. axb3 {[%clk 0:01:21]} 17... Nf6 {[%clk 0:02:02.3]}
18. c4 {[%clk 0:01:17.6]} 18... Ba3 {[%clk 0:01:46.3]} 19. Rc2 {[%clk
0:01:16.8]} 19... Bb4 {[%clk 0:01:43.8]} 20. Bg5 {[%clk 0:01:10.8]} 20... Bxd2
{[%clk 0:01:29.9]} 21. Bxf6 {[%clk 0:00:59.3]} 21... Bh6 {[%clk 0:01:28.9]} 22.
Be7 {[%clk 0:00:55.6]} 22... Rfe8 {[%clk 0:01:28.7]} 23. Bc5 {[%clk 0:00:53.4]}
23... bxc4 {[%clk 0:01:25.2]} 24. bxc4 {[%clk 0:00:51.9]} 24... e5 {[%clk
0:01:23]} 25. cxd5 {[%clk 0:00:46.3]} 25... cxd5 {[%clk 0:01:20.8]} 26. exd5
{[%clk 0:00:23.9]} 26... exd4 {[%clk 0:01:20]} 27. Qd3 {[%clk 0:00:20.4]} 27...
Re1+ {[%clk 0:01:18.8]} 28. Rxe1 {[%clk 0:00:19.9]} 28... Qxe1+ {[%clk
0:01:18.4]} 29. Kh2 {[%clk 0:00:20.8]} 29... Bf4+ {[%clk 0:01:13.3]} 30. g3
{[%clk 0:00:21]} 30... Ra1 {[%clk 0:01:13.5]} 0-1

[Event "*** Titled Tuesday Blitz"]
[Site "Chess.com"]
[Date "2020.05.26"]
[Round "6"]
[White "imdarealist"]
[Black "sergeikim"]
[Result "0-1"]
[WhiteElo "2210"]
[BlackElo "2411"]
[TimeControl "180+1"]
[EndTime "11:06:29 PDT"]
[Termination "sergeikim won by resignation"]

1. d4 {[%clk 0:03:00.9]} 1... Nf6 {[%clk 0:02:59.2]} 2. Bf4 {[%clk 0:03:01.3]}
2... g6 {[%clk 0:02:59]} 3. e3 {[%clk 0:03:01.6]} 3... Bg7 {[%clk 0:02:59.1]} 4.
Nf3 {[%clk 0:03:02.1]} 4... O-O {[%clk 0:02:59]} 5. h3 {[%clk 0:03:02.6]} 5...
d6 {[%clk 0:02:59]} 6. c3 {[%clk 0:03:03.3]} 6... Nbd7 {[%clk 0:02:58.9]} 7. Be2
{[%clk 0:03:01.2]} 7... b6 {[%clk 0:02:58.9]} 8. O-O {[%clk 0:03:01.6]} 8... Bb7
{[%clk 0:02:59]} 9. a4 {[%clk 0:03:02.3]} 9... a5 {[%clk 0:02:57.7]} 10. Na3
{[%clk 0:03:01.6]} 10... Ne4 {[%clk 0:02:56.9]} 11. Bh2 {[%clk 0:03:01.2]} 11...
e5 {[%clk 0:02:56.2]} 12. Nb5 {[%clk 0:03:00.8]} 12... Kh8 {[%clk 0:02:46]} 13.
Nd2 {[%clk 0:02:54]} 13... Nxd2 {[%clk 0:02:39.8]} 14. Qxd2 {[%clk 0:02:54.9]}
14... f5 {[%clk 0:02:27.6]} 15. Rfd1 {[%clk 0:02:48.3]} 15... Rc8 {[%clk
0:02:12]} 16. Na7 {[%clk 0:02:46.4]} 16... Rb8 {[%clk 0:02:09.1]} 17. Nb5 {[%clk
0:02:46.4]} 17... h6 {[%clk 0:02:05.3]} 18. b4 {[%clk 0:02:34.6]} 18... Nf6
{[%clk 0:01:54.5]} 19. dxe5 {[%clk 0:02:32.2]} 19... Ne4 {[%clk 0:01:54.1]} 20.
Qd3 {[%clk 0:02:28.5]} 20... Qh4 {[%clk 0:01:38.9]} 21. Rf1 {[%clk 0:02:18.2]}
21... dxe5 {[%clk 0:01:33]} 22. Nxc7 {[%clk 0:02:14.2]} 22... Rbd8 {[%clk
0:01:30.8]} 23. Qc2 {[%clk 0:02:09]} 23... Rd2 {[%clk 0:01:28]} 24. Qb3 {[%clk
0:01:52.8]} 24... Rxe2 {[%clk 0:01:25.3]} 25. Ne6 {[%clk 0:01:53.2]} 25... Nxf2
{[%clk 0:00:41.9]} 26. Nxf8 {[%clk 0:00:41.5]} 26... Nxh3+ {[%clk 0:00:39.4]}
27. gxh3 {[%clk 0:00:41.7]} 27... Qg5+ {[%clk 0:00:34]} 0-1

[Event "*** Titled Tuesday Blitz"]
[Site "Chess.com"]
[Date "2020.05.26"]
[Round "6"]
[White "2346PL"]
[Black "Enriquack"]
[Result "1-0"]
[WhiteElo "2508"]
[BlackElo "2335"]
[TimeControl "180+1"]
[EndTime "11:06:30 PDT"]
[Termination "2346PL won by resignation"]

1. d4 {[%clk 0:03:00.9]} 1... Nf6 {[%clk 0:02:59.8]} 2. Bg5 {[%clk 0:03:00.9]}
2... c5 {[%clk 0:02:58.6]} 3. d5 {[%clk 0:02:59]} 3... Ne4 {[%clk 0:02:55.9]} 4.
Bf4 {[%clk 0:02:56.8]} 4... g5 {[%clk 0:02:33.5]} 5. Bc1 {[%clk 0:02:51.9]} 5...
h6 {[%clk 0:02:21.4]} 6. f3 {[%clk 0:02:51.9]} 6... Nf6 {[%clk 0:02:21.3]} 7. e4
{[%clk 0:02:52.6]} 7... d6 {[%clk 0:02:22]} 8. c4 {[%clk 0:02:49.2]} 8... Bg7
{[%clk 0:02:20.8]} 9. Nc3 {[%clk 0:02:49.5]} 9... e6 {[%clk 0:02:17.2]} 10. dxe6
{[%clk 0:02:48.3]} 10... Bxe6 {[%clk 0:02:17.1]} 11. h4 {[%clk 0:02:46.3]} 11...
g4 {[%clk 0:02:16.7]} 12. f4 {[%clk 0:02:46.5]} 12... Nc6 {[%clk 0:02:10.1]} 13.
h5 {[%clk 0:02:39.6]} 13... Qa5 {[%clk 0:01:55.4]} 14. Bd2 {[%clk 0:02:38.2]}
14... Qb6 {[%clk 0:01:40.5]} 15. Rb1 {[%clk 0:02:33.6]} 15... O-O {[%clk
0:01:22]} 16. Bd3 {[%clk 0:02:32.1]} 16... Rfe8 {[%clk 0:01:20.5]} 17. Nge2
{[%clk 0:02:26.9]} 17... Nb4 {[%clk 0:01:07.1]} 18. Bc1 {[%clk 0:02:27.1]} 18...
d5 {[%clk 0:00:50.5]} 19. cxd5 {[%clk 0:02:18.6]} 19... Bxd5 {[%clk 0:00:49.7]}
20. exd5 {[%clk 0:02:15.6]} 20... c4 {[%clk 0:00:49.2]} 21. Bxc4 {[%clk
0:01:57.8]} 21... g3 {[%clk 0:00:49.3]} 22. Rf1 {[%clk 0:01:52.4]} 22... Rac8
{[%clk 0:00:45.8]} 23. a3 {[%clk 0:01:40.3]} 23... Rxc4 {[%clk 0:00:43.5]} 24.
axb4 {[%clk 0:01:40.6]} 24... Rd4 {[%clk 0:00:29.7]} 25. Qa4 {[%clk 0:01:28.5]}
25... Kf8 {[%clk 0:00:21.8]} 26. Qa5 {[%clk 0:01:16.1]} 26... Qxa5 {[%clk
0:00:18.1]} 27. bxa5 {[%clk 0:01:17]} 27... Nxd5 {[%clk 0:00:18.7]} 28. Nxd5
{[%clk 0:01:12.2]} 28... Rxd5 {[%clk 0:00:19.1]} 29. Rf3 {[%clk 0:01:09.6]}
29... Bf6 {[%clk 0:00:17.4]} 30. Be3 {[%clk 0:01:01.6]} 30... Rd3 {[%clk
0:00:16.9]} 31. Bc5+ {[%clk 0:00:58.7]} 31... Kg7 {[%clk 0:00:16.8]} 32. Rxd3
{[%clk 0:00:57.7]} 1-0

[Event "*** Titled Tuesday Blitz"]
[Site "Chess.com"]
[Date "2020.05.26"]
[Round "6"]
[White "MarcoRiehle"]
[Black "Misha_Bilous"]
[Result "1/2-1/2"]
[WhiteElo "2634"]
[BlackElo "2465"]
[TimeControl "180+1"]
[EndTime "11:06:31 PDT"]
[Termination "Game drawn by repetition"]

1. e4 {[%clk 0:03:00.9]} 1... c5 {[%clk 0:03:00.1]} 2. a3 {[%clk 0:02:59.2]}
2... e6 {[%clk 0:02:55.6]} 3. b4 {[%clk 0:02:59]} 3... cxb4 {[%clk 0:02:55.9]}
4. axb4 {[%clk 0:02:59.9]} 4... Bxb4 {[%clk 0:02:56.2]} 5. Bb2 {[%clk 0:03:00]}
5... Nf6 {[%clk 0:02:53.4]} 6. e5 {[%clk 0:03:00.6]} 6... Nd5 {[%clk 0:02:49.8]}
7. c4 {[%clk 0:03:01]} 7... Nc7 {[%clk 0:02:48.3]} 8. Qg4 {[%clk 0:03:00.9]}
8... O-O {[%clk 0:02:46]} 9. Nf3 {[%clk 0:02:57]} 9... Nc6 {[%clk 0:02:44.4]}
10. h4 {[%clk 0:02:53.9]} 10... Ne8 {[%clk 0:02:35]} 11. Bd3 {[%clk 0:02:46.9]}
11... h6 {[%clk 0:02:28.1]} 12. Qe4 {[%clk 0:02:37.2]} 12... f5 {[%clk
0:02:24.8]} 13. exf6 {[%clk 0:02:36.3]} 13... Nxf6 {[%clk 0:02:24.9]} 14. Qf4
{[%clk 0:02:13.9]} 14... d5 {[%clk 0:01:57.7]} 15. Ng5 {[%clk 0:02:10.5]} 15...
Ne4 {[%clk 0:01:48.6]} 16. Qg4 {[%clk 0:01:56.6]} 16... hxg5 {[%clk 0:01:43]}
17. hxg5 {[%clk 0:01:54.3]} 17... Qxg5 {[%clk 0:01:39.4]} 18. Qh3 {[%clk
0:01:49.6]} 18... Bxd2+ {[%clk 0:01:32.3]} 19. Ke2 {[%clk 0:01:46.3]} 19...
Rxf2+ {[%clk 0:00:50.4]} 20. Kd1 {[%clk 0:01:46.2]} 20... Ne5 {[%clk 0:00:41.9]}
21. Bxe4 {[%clk 0:01:33.9]} 21... dxe4 {[%clk 0:00:38.7]} 22. Qh7+ {[%clk
0:01:28.5]} 22... Kf7 {[%clk 0:00:35.4]} 23. Qxe4 {[%clk 0:01:29]} 23... Qg4+
{[%clk 0:00:29.1]} 24. Qxg4 {[%clk 0:01:28.4]} 24... Nxg4 {[%clk 0:00:30]} 25.
Nxd2 {[%clk 0:01:28.8]} 25... Ne3+ {[%clk 0:00:29]} 26. Kc1 {[%clk 0:01:26.5]}
26... Rxg2 {[%clk 0:00:27.9]} 27. Re1 {[%clk 0:01:14.9]} 27... Nf5 {[%clk
0:00:21.5]} 28. Nf3 {[%clk 0:01:14.5]} 28... b6 {[%clk 0:00:13.5]} 29. Ne5+
{[%clk 0:01:14.6]} 29... Ke7 {[%clk 0:00:09]} 30. Ba3+ {[%clk 0:01:14.8]} 30...
Kf6 {[%clk 0:00:07.5]} 31. Bb2 {[%clk 0:01:15.3]} 31... Ke7 {[%clk 0:00:07.8]}
32. Ba3+ {[%clk 0:01:14.6]} 32... Kf6 {[%clk 0:00:07.8]} 33. Bb2 {[%clk
0:01:13.3]} 33... Ke7 {[%clk 0:00:07.6]} 1/2-1/2

[Event "*** Titled Tuesday Blitz"]
[Site "Chess.com"]
[Date "2020.05.26"]
[Round "6"]
[White "PrinceMurad09"]
[Black "Fortitudine"]
[Result "0-1"]
[WhiteElo "2503"]
[BlackElo "2322"]
[TimeControl "180+1"]
[EndTime "11:06:31 PDT"]
[Termination "Fortitudine won by resignation"]

1. e4 {[%clk 0:03:00.9]} 1... c5 {[%clk 0:02:59]} 2. Nf3 {[%clk 0:03:00.9]} 2...
d6 {[%clk 0:02:58.6]} 3. d4 {[%clk 0:03:01.3]} 3... cxd4 {[%clk 0:02:59.5]} 4.
Nxd4 {[%clk 0:03:00.5]} 4... Nf6 {[%clk 0:02:59.9]} 5. Nc3 {[%clk 0:03:00.5]}
5... Nc6 {[%clk 0:03:00.4]} 6. Be3 {[%clk 0:03:00]} 6... Ng4 {[%clk 0:03:00.1]}
7. Bb5 {[%clk 0:03:00.2]} 7... Nxe3 {[%clk 0:02:54.8]} 8. fxe3 {[%clk
0:03:01.1]} 8... Bd7 {[%clk 0:02:52.5]} 9. O-O {[%clk 0:02:58.1]} 9... e6 {[%clk
0:02:34.9]} 10. Bxc6 {[%clk 0:02:56.1]} 10... bxc6 {[%clk 0:02:31.1]} 11. Qf3
{[%clk 0:02:56.4]} 11... Qe7 {[%clk 0:02:24.6]} 12. e5 {[%clk 0:02:56.8]} 12...
d5 {[%clk 0:02:22.7]} 13. b4 {[%clk 0:02:57.2]} 13... g6 {[%clk 0:02:18.3]} 14.
Nb3 {[%clk 0:02:48]} 14... Bg7 {[%clk 0:02:14.6]} 15. Qf4 {[%clk 0:02:44.6]}
15... O-O {[%clk 0:02:12.7]} 16. Nc5 {[%clk 0:02:44.8]} 16... a5 {[%clk
0:02:07.2]} 17. a3 {[%clk 0:02:43.4]} 17... f6 {[%clk 0:01:43.9]} 18. exf6
{[%clk 0:02:38.5]} 18... Bxf6 {[%clk 0:01:44]} 19. Qc7 {[%clk 0:02:22.6]} 19...
Bxc3 {[%clk 0:01:37.9]} 20. Qxd7 {[%clk 0:02:11.8]} 20... Qxd7 {[%clk
0:01:12.6]} 21. Nxd7 {[%clk 0:02:11.7]} 21... Bxa1 {[%clk 0:00:49.1]} 22. Nxf8
{[%clk 0:02:11.2]} 22... axb4 {[%clk 0:00:11.8]} 23. Rxa1 {[%clk 0:02:06.4]}
23... Kxf8 {[%clk 0:00:11]} 24. Rf1+ {[%clk 0:02:06.1]} 24... Ke7 {[%clk
0:00:11.7]} 25. axb4 {[%clk 0:02:06.9]} 25... Ra2 {[%clk 0:00:12]} 26. Rc1
{[%clk 0:02:04.3]} 26... Rb2 {[%clk 0:00:12]} 27. c3 {[%clk 0:02:04.9]} 27...
Kd6 {[%clk 0:00:12.2]} 28. Rf1 {[%clk 0:01:59.2]} 28... Rc2 {[%clk 0:00:09.9]}
29. Rf7 {[%clk 0:01:57.4]} 29... h5 {[%clk 0:00:08.3]} 30. Rg7 {[%clk
0:01:54.4]} 30... Rxc3 {[%clk 0:00:07.7]} 31. Rxg6 {[%clk 0:01:55]} 31... Rxe3
{[%clk 0:00:07.4]} 32. Rh6 {[%clk 0:01:53.4]} 32... Rb3 {[%clk 0:00:07]} 33.
Rxh5 {[%clk 0:01:52.9]} 33... Rxb4 {[%clk 0:00:07.4]} 34. Rh8 {[%clk 0:01:50.9]}
34... c5 {[%clk 0:00:07.5]} 35. h4 {[%clk 0:01:51.1]} 35... c4 {[%clk
0:00:06.2]} 36. h5 {[%clk 0:01:51.2]} 36... c3 {[%clk 0:00:06.6]} 37. Rc8 {[%clk
0:01:49.6]} 37... Rc4 {[%clk 0:00:06.9]} 38. Rd8+ {[%clk 0:01:43]} 38... Ke7
{[%clk 0:00:06.9]} 39. h6 {[%clk 0:01:40]} 39... c2 {[%clk 0:00:06.8]} 40. Rg8
{[%clk 0:01:38]} 40... c1=Q+ {[%clk 0:00:07]} 41. Kh2 {[%clk 0:01:38.4]} 41...
Qxh6+ {[%clk 0:00:07.6]} 42. Kg3 {[%clk 0:01:39]} 42... Rc3+ {[%clk 0:00:07.2]}
43. Kf2 {[%clk 0:01:39.2]} 43... Qe3+ {[%clk 0:00:07.5]} 0-1

[Event "*** Titled Tuesday Blitz"]
[Site "Chess.com"]
[Date "2020.05.26"]
[Round "6"]
[White "vidavi"]
[Black "algatar2020"]
[Result "1-0"]
[WhiteElo "2307"]
[BlackElo "1727"]
[TimeControl "180+1"]
[EndTime "11:06:34 PDT"]
[Termination "vidavi won by resignation"]

1. e4 {[%clk 0:03:00.9]} 1... d6 {[%clk 0:03:00.9]} 2. Nf3 {[%clk 0:03:01.1]}
2... Nf6 {[%clk 0:03:01.6]} 3. Nc3 {[%clk 0:03:00.6]} 3... Nbd7 {[%clk 0:03:01]}
4. Bc4 {[%clk 0:02:59.8]} 4... g6 {[%clk 0:02:57.2]} 5. Bxf7+ {[%clk 0:02:52.4]}
5... Kxf7 {[%clk 0:02:56.9]} 6. Ng5+ {[%clk 0:02:52.6]} 6... Kg8 {[%clk
0:02:55.9]} 7. Ne6 {[%clk 0:02:52.7]} 7... Qe8 {[%clk 0:02:55.5]} 8. Nxc7 {[%clk
0:02:53]} 8... Qd8 {[%clk 0:02:55.7]} 9. Nxa8 {[%clk 0:02:52.2]} 9... b6 {[%clk
0:02:55.9]} 10. d4 {[%clk 0:02:36.8]} 10... Ba6 {[%clk 0:02:55.6]} 11. e5 {[%clk
0:02:34.2]} 11... Qxa8 {[%clk 0:02:29.8]} 12. f3 {[%clk 0:02:01.5]} 12... dxe5
{[%clk 0:02:28.3]} 13. dxe5 {[%clk 0:02:00.9]} 13... Nxe5 {[%clk 0:02:28]} 14.
Bf4 {[%clk 0:01:57.7]} 14... Ned7 {[%clk 0:02:21.1]} 15. Qd2 {[%clk 0:01:47.8]}
15... h6 {[%clk 0:02:12.7]} 16. O-O-O {[%clk 0:01:44.1]} 16... Kh7 {[%clk
0:02:10.9]} 17. Rhe1 {[%clk 0:01:42]} 17... Qe8 {[%clk 0:01:51.6]} 18. Kb1
{[%clk 0:01:17.3]} 18... Qf7 {[%clk 0:01:50.8]} 19. g4 {[%clk 0:00:52.9]} 19...
g5 {[%clk 0:01:49.6]} 20. Be3 {[%clk 0:00:41.1]} 20... Bg7 {[%clk 0:01:47.5]}
21. h4 {[%clk 0:00:39.8]} 21... gxh4 {[%clk 0:01:45]} 22. g5 {[%clk 0:00:36.3]}
22... hxg5 {[%clk 0:01:44.2]} 23. Bxg5 {[%clk 0:00:37]} 23... Re8 {[%clk
0:01:38.4]} 24. Qf4 {[%clk 0:00:33.4]} 24... Kg8 {[%clk 0:01:30.4]} 25. Rg1
{[%clk 0:00:27.8]} 25... Nh7 {[%clk 0:01:24.1]} 26. Rxd7 {[%clk 0:00:23.1]}
26... Qxf4 {[%clk 0:01:23.2]} 27. Bxf4 {[%clk 0:00:24]} 27... Kf7 {[%clk
0:01:20.4]} 28. Rxa7 {[%clk 0:00:23.1]} 28... Bc4 {[%clk 0:01:18.3]} 29. Ne4
{[%clk 0:00:23.3]} 29... Bf6 {[%clk 0:01:15]} 30. Nd6+ {[%clk 0:00:22.8]} 30...
Ke6 {[%clk 0:01:14.9]} 31. Nxe8 {[%clk 0:00:22.9]} 1-0

[Event "*** Titled Tuesday Blitz"]
[Site "Chess.com"]
[Date "2020.05.26"]
[Round "6"]
[White "Maybe00"]
[Black "Danfii"]
[Result "1-0"]
[WhiteElo "2808"]
[BlackElo "2429"]
[TimeControl "180+1"]
[EndTime "11:06:37 PDT"]
[Termination "Maybe00 won by resignation"]

1. d4 {[%clk 0:03:00.9]} 1... Nf6 {[%clk 0:02:59.8]} 2. c4 {[%clk 0:02:59.3]}
2... e6 {[%clk 0:02:59.9]} 3. Nf3 {[%clk 0:02:58.2]} 3... b6 {[%clk 0:02:59.7]}
4. g3 {[%clk 0:02:58.2]} 4... Ba6 {[%clk 0:02:59.6]} 5. b3 {[%clk 0:02:58.3]}
5... Bb4+ {[%clk 0:02:58.5]} 6. Bd2 {[%clk 0:02:58.5]} 6... Be7 {[%clk
0:02:59.1]} 7. Nc3 {[%clk 0:02:58.8]} 7... O-O {[%clk 0:02:58.8]} 8. Bg2 {[%clk
0:02:58]} 8... d5 {[%clk 0:02:59.4]} 9. cxd5 {[%clk 0:02:57.8]} 9... exd5 {[%clk
0:02:59.1]} 10. O-O {[%clk 0:02:57.9]} 10... Re8 {[%clk 0:02:59.3]} 11. Ne5
{[%clk 0:02:58]} 11... Bb7 {[%clk 0:02:58.8]} 12. Qc2 {[%clk 0:02:58.1]} 12...
c5 {[%clk 0:02:56]} 13. dxc5 {[%clk 0:02:25.1]} 13... bxc5 {[%clk 0:02:55]} 14.
Rad1 {[%clk 0:02:25.1]} 14... Bf8 {[%clk 0:02:44.6]} 15. f4 {[%clk 0:01:27.9]}
15... Nbd7 {[%clk 0:02:22.5]} 16. Bc1 {[%clk 0:00:47.7]} 16... Nxe5 {[%clk
0:02:07.6]} 17. fxe5 {[%clk 0:00:48.6]} 17... Rxe5 {[%clk 0:02:08.5]} 18. Bf4
{[%clk 0:00:48]} 18... Re8 {[%clk 0:02:01.5]} 19. Bg5 {[%clk 0:00:33.4]} 19...
Qb6 {[%clk 0:01:39.8]} 20. Bxf6 {[%clk 0:00:31.7]} 20... gxf6 {[%clk 0:01:40.7]}
21. Nxd5 {[%clk 0:00:26.7]} 21... Bxd5 {[%clk 0:01:31.6]} 22. Bxd5 {[%clk
0:00:27.6]} 22... Rad8 {[%clk 0:01:31.1]} 23. Bc4 {[%clk 0:00:27.2]} 23... Bh6
{[%clk 0:01:21.1]} 24. Qf5 {[%clk 0:00:25.1]} 24... Be3+ {[%clk 0:01:18.9]} 25.
Kg2 {[%clk 0:00:25.4]} 25... Rxd1 {[%clk 0:01:09.3]} 26. Rxd1 {[%clk 0:00:26.3]}
26... Re5 {[%clk 0:01:08.6]} 27. Qg4+ {[%clk 0:00:24]} 27... Rg5 {[%clk
0:01:08.4]} 28. Qd7 {[%clk 0:00:22.4]} 28... Bd4 {[%clk 0:00:43.6]} 29. Qxf7+
{[%clk 0:00:20.9]} 1-0

[Event "*** Titled Tuesday Blitz"]
[Site "Chess.com"]
[Date "2020.05.26"]
[Round "6"]
[White "swisspower96"]
[Black "bakki78"]
[Result "0-1"]
[WhiteElo "2595"]
[BlackElo "2758"]
[TimeControl "180+1"]
[EndTime "11:06:40 PDT"]
[Termination "bakki78 won by resignation"]

1. d4 {[%clk 0:03:00.9]} 1... Nf6 {[%clk 0:02:58.7]} 2. c4 {[%clk 0:03:01.3]}
2... g6 {[%clk 0:02:58.7]} 3. Nc3 {[%clk 0:03:01.5]} 3... Bg7 {[%clk 0:02:59]}
4. e4 {[%clk 0:03:01.5]} 4... d6 {[%clk 0:02:59.3]} 5. h3 {[%clk 0:03:02]} 5...
O-O {[%clk 0:02:58.4]} 6. Be3 {[%clk 0:03:02.2]} 6... c6 {[%clk 0:02:56.4]} 7.
g4 {[%clk 0:03:00.5]} 7... e5 {[%clk 0:02:55]} 8. d5 {[%clk 0:02:55]} 8... Na6
{[%clk 0:02:54.9]} 9. Nge2 {[%clk 0:02:51.8]} 9... h5 {[%clk 0:02:39.6]} 10. f3
{[%clk 0:02:49.8]} 10... cxd5 {[%clk 0:02:27.7]} 11. cxd5 {[%clk 0:02:49.1]}
11... Bd7 {[%clk 0:02:26.5]} 12. Bg5 {[%clk 0:02:41.4]} 12... Qa5 {[%clk
0:02:23.5]} 13. Qd2 {[%clk 0:02:19.9]} 13... Rac8 {[%clk 0:02:18.8]} 14. Ng3
{[%clk 0:02:17.8]} 14... Nh7 {[%clk 0:02:18.2]} 15. Rc1 {[%clk 0:01:20.2]} 15...
Nxg5 {[%clk 0:02:11.7]} 16. Qxg5 {[%clk 0:01:20.3]} 16... Nb4 {[%clk 0:02:10.6]}
17. Kf2 {[%clk 0:00:51.6]} 17... h4 {[%clk 0:02:03.8]} 18. Qxh4 {[%clk
0:00:42.2]} 18... Nxa2 {[%clk 0:02:03.8]} 19. Nxa2 {[%clk 0:00:33.2]} 19... Qxa2
{[%clk 0:01:58.9]} 20. Be2 {[%clk 0:00:30.4]} 20... Qxb2 {[%clk 0:01:56.6]} 21.
Rb1 {[%clk 0:00:26]} 21... Qd4+ {[%clk 0:01:54.1]} 22. Kg2 {[%clk 0:00:26.2]}
22... Rc2 {[%clk 0:01:53.4]} 23. Rxb7 {[%clk 0:00:21.4]} 23... Bc8 {[%clk
0:01:51]} 24. Rbb1 {[%clk 0:00:15.8]} 24... Ba6 {[%clk 0:01:50.7]} 25. Rbe1
{[%clk 0:00:16.2]} 25... Qe3 {[%clk 0:01:49.1]} 26. Rhf1 {[%clk 0:00:07.5]}
26... Bxe2 {[%clk 0:01:46.9]} 27. Rxe2 {[%clk 0:00:05.1]} 27... Rxe2+ {[%clk
0:01:47]} 28. Nxe2 {[%clk 0:00:06]} 28... Qxe2+ {[%clk 0:01:47.2]} 29. Rf2
{[%clk 0:00:06.9]} 29... Qc4 {[%clk 0:01:43.5]} 30. Qe7 {[%clk 0:00:06.9]} 30...
Qc5 {[%clk 0:01:41.5]} 31. h4 {[%clk 0:00:06.8]} 31... Rc8 {[%clk 0:01:39.4]}
32. h5 {[%clk 0:00:06.5]} 32... Qc7 {[%clk 0:01:39.5]} 33. Qg5 {[%clk
0:00:05.1]} 33... Qd8 {[%clk 0:01:39]} 34. Qe3 {[%clk 0:00:04.7]} 34... gxh5
{[%clk 0:01:38.4]} 35. gxh5 {[%clk 0:00:04.9]} 35... Qh4 {[%clk 0:01:38]} 36.
Qxa7 {[%clk 0:00:04.9]} 36... Qg5+ {[%clk 0:01:38.1]} 37. Kf1 {[%clk 0:00:04.1]}
37... Rc1+ {[%clk 0:01:37.5]} 38. Ke2 {[%clk 0:00:04.5]} 38... Rc2+ {[%clk
0:01:37.5]} 39. Kf1 {[%clk 0:00:04.9]} 39... Rc1+ {[%clk 0:01:33.9]} 40. Ke2
{[%clk 0:00:05.3]} 40... Qg1 {[%clk 0:01:32.6]} 41. Qa8+ {[%clk 0:00:01.6]}
41... Kh7 {[%clk 0:01:32]} 42. Qa4 {[%clk 0:00:02.3]} 42... Qe1+ {[%clk
0:01:31.1]} 0-1

[Event "*** Titled Tuesday Blitz"]
[Site "Chess.com"]
[Date "2020.05.26"]
[Round "6"]
[White "bascheyaro"]
[Black "woodhy"]
[Result "1-0"]
[WhiteElo "2698"]
[BlackElo "2429"]
[TimeControl "180+1"]
[EndTime "11:06:40 PDT"]
[Termination "bascheyaro won by checkmate"]

1. d4 {[%clk 0:03:00.9]} 1... e6 {[%clk 0:03:00.9]} 2. c4 {[%clk 0:03:01]} 2...
Nf6 {[%clk 0:03:01.4]} 3. Nf3 {[%clk 0:03:01.5]} 3... b6 {[%clk 0:03:01.4]} 4.
g3 {[%clk 0:03:01.5]} 4... Bb7 {[%clk 0:03:01.8]} 5. Bg2 {[%clk 0:03:01.9]} 5...
Be7 {[%clk 0:03:02.7]} 6. O-O {[%clk 0:03:02.4]} 6... O-O {[%clk 0:03:02.9]} 7.
Qc2 {[%clk 0:03:02.7]} 7... Ne4 {[%clk 0:03:00.7]} 8. d5 {[%clk 0:03:01.9]} 8...
f5 {[%clk 0:02:55.2]} 9. Nc3 {[%clk 0:02:57.6]} 9... Nxc3 {[%clk 0:02:54.3]} 10.
bxc3 {[%clk 0:02:57.6]} 10... Bf6 {[%clk 0:02:54.6]} 11. Rd1 {[%clk 0:02:56.5]}
11... Qc8 {[%clk 0:02:54.5]} 12. Nd4 {[%clk 0:02:53]} 12... Na6 {[%clk
0:02:38.3]} 13. e4 {[%clk 0:02:52.5]} 13... g6 {[%clk 0:02:32.5]} 14. exf5
{[%clk 0:02:50.6]} 14... exf5 {[%clk 0:02:30.4]} 15. Ba3 {[%clk 0:02:46.8]}
15... Re8 {[%clk 0:02:22]} 16. Nxf5 {[%clk 0:02:41.1]} 16... gxf5 {[%clk
0:01:57.1]} 17. Qxf5 {[%clk 0:02:42]} 17... Bxc3 {[%clk 0:01:52.5]} 18. Rac1
{[%clk 0:01:58.2]} 18... Bg7 {[%clk 0:01:46.3]} 19. Re1 {[%clk 0:01:51.4]} 19...
d6 {[%clk 0:01:40.6]} 20. Qh5 {[%clk 0:01:28.4]} 20... Qd7 {[%clk 0:01:23.8]}
21. Be4 {[%clk 0:01:26]} 21... Rxe4 {[%clk 0:01:04.1]} 22. Rxe4 {[%clk
0:01:26.9]} 22... Qf7 {[%clk 0:00:59.8]} 23. Qxf7+ {[%clk 0:01:23.2]} 23... Kxf7
{[%clk 0:00:59.5]} 24. Rce1 {[%clk 0:01:23.8]} 24... Bf6 {[%clk 0:00:49.1]} 25.
Rf4 {[%clk 0:01:23.8]} 25... Kg7 {[%clk 0:00:31.3]} 26. Re6 {[%clk 0:01:23.4]}
26... Be5 {[%clk 0:00:29.8]} 27. Re7+ {[%clk 0:01:22.9]} 27... Kg6 {[%clk
0:00:21.1]} 28. Rg4+ {[%clk 0:01:19.4]} 28... Kf5 {[%clk 0:00:19.2]} 29. f3
{[%clk 0:01:13]} 29... Bf6 {[%clk 0:00:15.9]} 30. Rf7 {[%clk 0:01:10.8]} 30...
h5 {[%clk 0:00:09.3]} 31. Rf4+ {[%clk 0:01:01.4]} 31... Kg6 {[%clk 0:00:08]} 32.
R4xf6+ {[%clk 0:01:01.5]} 32... Kg5 {[%clk 0:00:07.7]} 33. h4# {[%clk
0:01:02.4]} 1-0